bitfinex/quotes_SOLUSD_20250518
["timestamp","ask_amount","ask_price","bid_price","bid_amount"]
[1747593890212,24.32733616,170.4,170.35,24.32733616]
[1747593890426,24.32733616,170.4,170.32,57.04307016]
[1747593890637,24.32733616,170.4,170.35,24.32733616]
[1747593891241,5.86888901,170.39,170.35,24.32733616]
[1747593891438,30.19622517,170.39,170.34,24.32733616]
[1747593892523,5.86888901,170.39,170.35,24.32733616]
[1747593894031,137.37662314,170.4,170.36,24.32733616]
[1747593894648,137.37662314,170.4,170.37,24.32733616]
[1747593895850,143.24521355,170.4,170.37,24.32733616]
[1747593896949,137.37662314,170.4,170.37,24.32733616]
[1747593898264,193.57253491,170.4,170.32,29.5518]
[1747593898437,137.37662314,170.39,170.32,53.87913616]
[1747593898627,24.32733616,170.37,170.32,24.32733616]
[1747593898825,24.32733616,170.36,170.31,24.32733616]
[1747593899422,30.1975436,170.36,170.31,24.32733616]
[1747593899619,20.54501373,170.36,170.28,8.2158]
[1747593899824,20.54501373,170.36,170.24,16.58739079]
[1747593899825,26.0,170.32,170.24,16.58739079]
[1747593900022,24.32733616,170.29,170.24,16.58739079]
[1747593900252,24.32733616,170.29,170.24,40.91472695]
[1747593900524,24.32733616,170.29,170.24,16.58739079]
[1747593900774,137.37662314,170.31,170.28,24.32733616]
[1747593901070,137.37662314,170.31,170.29,24.32733616]
[1747593901268,137.37662314,170.31,170.3,24.32733616]
[1747593901765,137.37662314,170.31,170.29,24.32733616]
[1747593901917,137.37662314,170.31,170.27,24.32733616]
[1747593902121,137.37662314,170.31,170.24,35.64851697]
[1747593902122,24.32733616,170.3,170.25,24.32733616]
[1747593902419,137.37662314,170.3,170.27,24.32733616]
[1747593903545,137.37662314,170.3,170.28,24.32733616]
[1747593903738,137.37662314,170.3,170.25,5.87363473]
[1747593903963,137.37662314,170.3,170.28,24.32733616]
[1747593904137,137.37662314,170.3,170.25,5.87363473]
[1747593904344,137.37662314,170.3,170.29,24.32733616]
[1747593905049,137.37662314,170.3,170.28,24.32733616]
[1747593905558,137.37662314,170.3,170.29,24.32733616]
[1747593906367,137.37662314,170.3,170.29,30.19967158]
[1747593906567,137.37662314,170.37,170.29,30.19967158]
[1747593906733,137.37662314,170.37,170.36,24.32733616]
[1747593907437,161.7039593,170.37,170.31,24.32733616]
[1747593907649,137.37662314,170.36,170.33,24.32733616]
[1747593908555,137.37662314,170.36,170.34,24.32733616]
[1747593908945,161.7039593,170.36,170.31,24.32733616]
[1747593909347,24.32733616,170.35,170.3,24.32733616]
[1747593909554,56.19829253,170.33,170.28,21.66]
[1747593909863,24.32733616,170.3,170.25,24.32733616]
[1747593910264,24.32733616,170.3,170.2,1.6172]
[1747593910265,24.32733616,170.28,170.2,1.6172]
[1747593910944,24.32733616,170.28,170.22,24.32733616]
[1747593911147,24.32733616,170.28,170.23,24.32733616]
[1747593911479,137.37662314,170.29,170.27,24.32733616]
[1747593911648,5.87136185,170.32,170.28,24.32733616]
[1747593911837,143.24765057,170.33,170.31,24.32733616]
[1747593912047,5.87102743,170.33,170.31,24.32733616]
[1747593912238,5.87102743,170.33,170.29,24.32733616]
[1747593912561,24.32733616,170.31,170.26,24.32733616]
[1747593912746,31.87102743,170.33,170.27,24.32733616]
[1747593912747,24.32733616,170.32,170.27,24.32733616]
[1747593913528,5.87164582,170.31,170.27,24.32733616]
[1747593914760,5.87134318,170.32,170.29,24.32733616]
[1747593915557,152.05193793,170.36,170.31,24.32733616]
[1747593915558,137.37662314,170.36,170.31,24.32733616]
[1747593915760,137.37662314,170.36,170.34,24.32733616]
[1747593915949,137.37662314,170.36,170.35,24.32733616]
[1747593917045,137.37662314,170.36,170.3,21.56]
[1747593917251,137.37662314,170.36,170.35,24.32733616]
[1747593919765,137.37662314,170.36,170.33,24.32733616]
[1747593920265,143.24654565,170.36,170.33,24.32733616]
[1747593920466,167.57388181,170.36,170.3,21.56]
[1747593920768,24.32733616,170.32,170.28,24.32733616]
[1747593920969,30.19898198,170.31,170.26,24.32733616]
[1747593921263,161.7039593,170.33,170.29,24.32733616]
[1747593921567,167.57501474,170.33,170.28,24.32733616]
[1747593921774,24.32733616,170.32,170.27,24.32733616]
[1747593921943,24.32733616,170.31,170.26,24.32733616]
[1747593922865,30.19898198,170.31,170.26,24.32733616]
[1747593923260,152.05401408,170.33,170.28,24.32733616]
[1747593923261,5.87131337,170.32,170.28,24.32733616]
[1747593923771,24.32733616,170.29,170.24,24.32733616]
[1747593923943,24.32733616,170.27,170.23,24.32733616]
[1747593924853,5.87406015,170.24,170.2,24.32733616]
[1747593925377,30.20036135,170.27,170.22,24.32733616]
[1747593925879,187.7039593,170.28,170.23,24.32733616]
[1747593926044,137.37662314,170.28,170.24,24.32733616]
[1747593927473,137.37662314,170.28,170.26,24.32733616]
[1747593927772,137.37662314,170.28,170.19,58.02643616]
[1747593927773,137.37662314,170.28,170.25,24.32733616]
[1747593927941,137.37662314,170.28,170.24,24.32733616]
[1747593928142,143.24932696,170.28,170.24,24.32733616]
[1747593928968,24.32733616,170.26,170.21,24.32733616]
[1747593929343,30.2010348,170.26,170.21,24.32733616]
[1747593929545,137.37662314,170.28,170.25,24.32733616]
[1747593930047,137.37662314,170.28,170.24,24.32733616]
[1747593930244,143.24931305,170.28,170.24,24.32733616]
[1747593930460,137.37662314,170.28,170.25,24.32733616]
[1747593930663,137.37662314,170.28,170.27,24.32733616]
[1747593931273,137.37662314,170.28,170.27,30.20036135]
[1747593932676,137.37662314,170.28,170.26,24.32733616]
[1747593932973,137.37662314,170.28,170.27,24.32733616]
[1747593933877,137.37662314,170.28,170.27,30.20036135]
[1747593935369,137.37662314,170.28,170.22,1.17456897]
[1747593935573,137.37662314,170.28,170.26,24.32733616]
[1747593935762,137.37662314,170.28,170.21,48.91509547]
[1747593935964,137.37662314,170.28,170.26,24.32733616]
[1747593936189,137.37662314,170.27,170.25,24.32733616]
[1747593936357,161.7039593,170.27,170.22,24.32733616]
[1747593936545,24.32733616,170.25,170.15,1.5341]
[1747593936751,137.37662314,170.24,170.2,24.32733616]
[1747593936981,137.37662314,170.23,170.2,24.32733616]
[1747593937365,137.37662314,170.23,170.21,24.32733616]
[1747593937765,137.37662314,170.23,170.22,24.32733616]
[1747593938353,24.32733616,170.29,170.22,24.32733616]
[1747593938354,137.37662314,170.27,170.22,24.32733616]
[1747593938558,137.37662314,170.27,170.26,24.32733616]
[1747593939856,137.37662314,170.27,170.25,24.32733616]
[1747593940086,143.24980059,170.27,170.19,31.37772653]
[1747593940290,161.7039593,170.26,170.22,24.32733616]
[1747593940499,161.7039593,170.25,170.2,24.32733616]
[1747593941496,5.87509547,170.21,170.15,7.6899]
[1747593941660,137.37662314,170.2,170.16,24.32733616]
[1747593941857,137.37662314,170.2,170.13,21.44]
[1747593941858,161.7039593,170.2,170.13,21.44]
[1747593942059,24.32733616,170.17,170.13,24.32733616]
[1747593942277,137.37662314,170.16,170.1,6.1558]
[1747593942570,161.7039593,170.16,170.12,24.32733616]
[1747593942878,137.37662314,170.16,170.12,24.32733616]
[1747593943084,137.37662314,170.16,170.13,24.32733616]
[1747593943392,137.37662314,170.16,170.12,24.32733616]
[1747593943692,137.37662314,170.2,170.15,24.32733616]
[1747593943987,137.37662314,170.2,170.16,24.32733616]
[1747593944178,137.37662314,170.2,170.13,5.8778581]
[1747593944379,137.37662314,170.2,170.17,24.32733616]
[1747593944587,137.37662314,170.2,170.19,24.32733616]
[1747593944964,137.37662314,170.2,170.18,24.32733616]
[1747593945884,137.37662314,170.2,170.18,30.20340295]
[1747593946076,137.37662314,170.2,170.18,24.32733616]
[1747593946282,26.0,170.24,170.19,24.32733616]
[1747593946464,137.37662314,170.25,170.19,24.32733616]
[1747593946666,137.37662314,170.25,170.24,24.32733616]
[1747593947192,108.88422971,170.3,170.24,24.32733616]
[1747593947193,4.05609207,170.3,170.24,24.32733616]
[1747593947386,4.05609207,170.3,170.21,66.10964886]
[1747593947387,4.05609207,170.3,170.29,24.32733616]
[1747593947579,137.37662314,170.34,170.22,1.17450548]
[1747593947777,161.7039593,170.34,170.29,24.32733616]
[1747593947980,24.32733616,170.33,170.23,5.87440521]
[1747593948178,167.57473005,170.34,170.29,24.32733616]
[1747593948765,208.25125934,170.34,170.29,24.32733616]
[1747593948966,24.32733616,170.32,170.27,24.32733616]
[1747593949189,169.24739389,170.34,170.28,24.32733616]
[1747593949362,169.24739389,170.34,170.29,24.32733616]
[1747593949566,169.24739389,170.34,170.3,24.32733616]
[1747593949776,24.32733616,170.33,170.23,5.87440521]
[1747593949986,24.32733616,170.32,170.27,24.32733616]
[1747593950167,24.32733616,170.33,170.28,24.32733616]
[1747593950792,24.32733616,170.33,170.23,5.87440521]
[1747593950971,5.87130108,170.32,170.28,24.32733616]
[1747593952293,5.87130108,170.32,170.29,24.32733616]
[1747593952475,5.87130108,170.32,170.3,24.32733616]
[1747593952681,5.87130108,170.32,170.29,24.32733616]
[1747593952996,30.19863724,170.32,170.27,24.32733616]
[1747593953492,30.19863724,170.32,170.23,24.32733616]
[1747593953493,24.32733616,170.28,170.23,24.32733616]
[1747593953791,137.37662314,170.27,170.23,24.32733616]
[1747593953992,143.24973235,170.27,170.24,24.32733616]
[1747593954291,137.37662314,170.27,170.26,24.32733616]
[1747593954795,50.32733616,170.33,170.26,24.32733616]
[1747593954989,50.32733616,170.33,170.29,24.32733616]
[1747593955195,137.37662314,170.32,170.29,24.32733616]
[1747593955504,143.24819879,170.32,170.29,24.32733616]
[1747593955677,137.37662314,170.32,170.3,24.32733616]
[1747593956089,137.37662314,170.32,170.31,24.32733616]
[1747593958179,137.37662314,170.32,170.3,24.32733616]
[1747593958708,137.37662314,170.32,170.28,5.87264462]
[1747593958709,137.37662314,170.32,170.31,24.32733616]
[1747593959202,137.37662314,170.37,170.31,24.32733616]
[1747593959368,137.37662314,170.37,170.34,24.32733616]
[1747593959577,137.37662314,170.37,170.36,24.32733616]
[1747593959978,137.37662314,170.37,170.36,30.19725867]
[1747593960673,143.24455245,170.42,170.36,30.19725867]
[1747593960873,137.37662314,170.41,170.39,24.32733616]
[1747593961388,137.37662314,170.41,170.35,5.87026104]
[1747593961389,137.37662314,170.41,170.4,24.32733616]
[1747593962291,143.24482336,170.41,170.37,1.5899]
[1747593962474,143.24482336,170.41,170.39,24.32733616]
[1747593962789,137.37662314,170.41,170.39,24.32733616]
[1747593962989,137.37662314,170.41,170.4,24.32733616]
[1747593963385,137.37662314,170.41,170.37,1.5899]
[1747593963596,137.37662314,170.41,170.37,24.32733616]
[1747593963992,167.57215952,170.41,170.37,24.32733616]
[1747593964404,137.37662314,170.41,170.38,24.32733616]
[1747593964774,143.24495775,170.41,170.38,24.32733616]
[1747593965705,143.24495775,170.41,170.34,12.05981492]
[1747593965706,137.37662314,170.4,170.34,6.1893]
[1747593965896,137.37662314,170.39,170.37,24.32733616]
[1747593967097,143.24560099,170.39,170.34,6.1893]
[1747593967305,143.24560099,170.39,170.35,24.32733616]
[1747593968208,137.37662314,170.38,170.32,1.5899]
[1747593968395,24.32733616,170.36,170.31,24.32733616]
[1747593968702,137.37662314,170.35,170.31,24.32733616]
[1747593968909,161.7039593,170.35,170.3,24.32733616]
[1747593969093,137.37662314,170.35,170.31,24.32733616]
[1747593969507,137.37662314,170.34,170.31,24.32733616]
[1747593969713,24.32733616,170.33,170.28,45.76733616]
[1747593970010,161.7039593,170.34,170.29,24.32733616]
[1747593970185,5.87095637,170.33,170.29,24.32733616]
[1747593970381,137.37662314,170.32,170.28,45.76733616]
[1747593970612,161.7039593,170.31,170.26,30.54433616]
[1747593970903,137.37662314,170.31,170.27,24.32733616]
[1747593971109,137.37662314,170.31,170.3,24.32733616]
[1747593971325,137.37662314,170.36,170.3,24.32733616]
[1747593971529,137.37662314,170.36,170.35,24.32733616]
[1747593971704,137.37662314,170.41,170.35,24.32733616]
[1747593972017,137.37662314,170.41,170.39,24.32733616]
[1747593972237,137.37662314,170.41,170.4,24.32733616]
[1747593972407,4.05609207,170.43,170.4,24.32733616]
[1747593972721,9.92361661,170.43,170.41,24.32733616]
[1747593973099,5.86752454,170.43,170.41,24.32733616]
[1747593973419,5.86708792,170.45,170.41,24.32733616]
[1747593974107,30.19442408,170.45,170.4,24.32733616]
[1747593974620,5.86655242,170.46,170.42,24.32733616]
[1747593974817,137.37662314,170.47,170.43,24.32733616]
[1747593974988,137.37662314,170.47,170.45,24.32733616]
[1747593975186,137.37662314,170.47,170.46,24.32733616]
[1747593975415,5.86478367,170.51,170.46,24.32733616]
[1747593975718,30.19211983,170.51,170.46,24.32733616]
[1747593976796,5.86478367,170.51,170.46,24.32733616]
[1747593976993,5.86478367,170.51,170.48,24.32733616]
[1747593977501,5.86407083,170.53,170.49,24.32733616]
[1747593977888,187.7039593,170.54,170.44,6.6061]
[1747593977889,143.24041346,170.54,170.51,24.32733616]
[1747593979128,26.0,170.51,170.39,8.1766]
[1747593979311,24.32733616,170.47,170.39,8.1766]
[1747593979508,24.32733616,170.46,170.41,24.32733616]
[1747593979714,24.32733616,170.47,170.42,24.32733616]
[1747593980210,24.32733616,170.45,170.4,24.32733616]
[1747593980415,24.32733616,170.42,170.38,21.32]
[1747593980724,24.32733616,170.42,170.37,24.32733616]
[1747593980927,24.32733616,170.41,170.36,24.32733616]
[1747593981129,24.32733616,170.4,170.34,1.5261]
[1747593981326,46.53508565,170.44,170.34,1.5261]
[1747593981327,26.0,170.41,170.36,24.32733616]
[1747593981531,50.32733616,170.41,170.36,24.32733616]
[1747593982520,5.8685446,170.4,170.36,24.32733616]
[1747593982735,5.86716733,170.44,170.39,24.32733616]
[1747593983044,24.32733616,170.43,170.38,24.32733616]
[1747593983538,24.32733616,170.42,170.34,1.5261]
[1747593983718,24.32733616,170.41,170.36,24.32733616]
[1747593983914,137.37662314,170.42,170.38,24.32733616]
[1747593984115,137.37662314,170.42,170.39,24.32733616]
[1747593984343,5.86716733,170.44,170.34,7.39663447]
[1747593984344,5.86716733,170.44,170.41,24.32733616]
[1747593984542,5.86682311,170.45,170.41,24.32733616]
[1747593984754,5.86651748,170.46,170.42,24.32733616]
[1747593985038,5.86651748,170.46,170.39,5.86886734]
[1747593985039,137.37662314,170.47,170.45,24.32733616]
[1747593985346,137.37662314,170.47,170.46,24.32733616]
[1747593985516,5.86518365,170.5,170.46,24.32733616]
[1747593985843,5.86465978,170.52,170.48,24.32733616]
[1747593986147,5.86415332,170.53,170.49,24.32733616]
[1747593987237,5.86415332,170.53,170.5,24.32733616]
[1747593987834,5.86415332,170.53,170.49,24.32733616]
[1747593989948,5.8637462,170.54,170.5,24.32733616]
[1747593990142,5.8637462,170.54,170.51,24.32733616]
[1747593990439,30.19108236,170.54,170.46,5.86642624]
[1747593990646,30.19108236,170.54,170.49,24.32733616]
[1747593990830,30.19108236,170.54,170.5,24.32733616]
[1747593991548,163.37662314,170.56,170.5,24.32733616]
[1747593991549,143.24079551,170.53,170.5,24.32733616]
[1747593992545,137.37662314,170.53,170.52,24.32733616]
[1747593993248,137.37662314,170.53,170.5,6.4173]
[1747593994128,137.37662314,170.53,170.5,12.28234239]
[1747593994644,137.37662314,170.53,170.5,6.4173]
[1747593995656,143.2407868,170.53,170.5,6.4173]
[1747593995824,137.37662314,170.53,170.5,6.4173]
[1747593996659,137.37662314,170.53,170.5,12.28227138]
[1747593997273,137.37662314,170.53,170.5,6.4173]
[1747593997427,137.37662314,170.53,170.5,12.28234099]
[1747593998265,137.37662314,170.57,170.5,12.28234099]
[1747593999751,143.23939799,170.57,170.5,12.28234099]
[1747594000648,167.5310264,170.57,170.5,6.4173]
[1747594001341,143.23939799,170.57,170.5,6.4173]
[1747594002226,137.37662314,170.57,170.5,6.4173]
[1747594002557,137.37662314,170.57,170.5,12.28226832]
[1747594003069,143.23935106,170.57,170.5,12.28226832]
[1747594005052,137.37662314,170.57,170.5,12.28226832]
[1747594007560,143.23936854,170.57,170.5,12.28226832]
[1747594008357,137.37662314,170.57,170.5,12.28226832]
[1747594008733,137.37662314,170.57,170.5,26.94502491]
[1747594009041,137.37662314,170.57,170.5,12.28226832]
[1747594009858,24.29162841,170.55,170.47,21.22]
[1747594010153,24.29162841,170.55,170.44,22.83682056]
[1747594010154,24.29162841,170.5,170.44,14.03658281]
[1747594010330,24.29162841,170.5,170.44,12.43358281]
[1747594010827,24.29162841,170.48,170.42,21.22]
[1747594011030,24.29162841,170.47,170.42,21.22]
[1747594011232,24.29162841,170.44,170.37,21.22]
[1747594011431,24.29162841,170.42,170.37,21.22]
[1747594011763,24.29162841,170.43,170.37,21.22]
[1747594012311,24.29162841,170.4,170.34,6.5665]
[1747594012432,24.29162841,170.41,170.34,6.5665]
[1747594012847,30.16008238,170.41,170.34,12.43709181]
[1747594013047,30.16008238,170.41,170.34,6.5665]
[1747594013237,24.29162841,170.39,170.31,53.09137039]
[1747594013441,24.29162841,170.37,170.31,21.22]
[1747594013640,24.29162841,170.37,170.31,27.09155431]
[1747594013861,24.29162841,170.38,170.31,27.09155431]
[1747594014030,24.29162841,170.37,170.31,21.22]
[1747594014968,24.29162841,170.37,170.31,27.09153818]
[1747594015171,24.29162841,170.39,170.31,27.09153818]
[1747594016493,31.86820022,170.41,170.31,27.09153818]
[1747594016856,5.86791825,170.42,170.31,54.26548755]
[1747594017079,24.29162841,170.43,170.34,26.0]
[1747594018078,5.86750397,170.44,170.35,5.87026709]
[1747594018388,30.15913238,170.44,170.35,5.87026709]
[1747594018567,24.29162841,170.41,170.34,31.87055789]
[1747594018970,24.29162841,170.41,170.32,5.87130108]
[1747594019175,24.29162841,170.38,170.3,268.3865]
[1747594019385,24.29162841,170.37,170.3,274.25841847]
[1747594019701,24.29162841,170.36,170.3,21.22]
[1747594020189,30.161691,170.36,170.3,21.22]
[1747594020687,24.29162841,170.36,170.3,27.0918202]
[1747594020869,24.29162841,170.37,170.3,27.0918202]
[1747594021397,24.29162841,170.32,170.25,1.5081]
[1747594021575,24.29162841,170.3,170.23,5.87438705]
[1747594021762,26.0,170.3,170.22,21.22]
[1747594021958,24.29162841,170.27,170.22,21.22]
[1747594022167,5.87337013,170.26,170.22,21.22]
[1747594022490,29.66499854,170.26,170.19,31.87576266]
[1747594022797,24.29162841,170.28,170.19,31.87576266]
[1747594022988,24.29162841,170.29,170.19,31.87576266]
[1747594023291,5.87164582,170.31,170.19,31.87576266]
[1747594023509,24.29162841,170.29,170.19,31.87576266]
[1747594023681,24.29162841,170.28,170.19,31.87576266]
[1747594024214,5.87302519,170.27,170.19,31.87576266]
[1747594024365,30.1646536,170.27,170.19,31.87576266]
[1747594024571,24.29162841,170.29,170.19,31.87576266]
[1747594024877,14.67911455,170.31,170.19,31.87576266]
[1747594025367,24.29162841,170.29,170.19,31.87576266]
[1747594025568,30.16417135,170.29,170.19,31.87576266]
[1747594025978,30.16361726,170.31,170.2,19.82442288]
[1747594026191,24.29162841,170.29,170.19,31.87576266]
[1747594026394,24.29162841,170.28,170.19,31.87576266]
[1747594026584,24.29162841,170.27,170.19,31.87576266]
[1747594027080,24.29162841,170.29,170.19,33.05065305]
[1747594027397,137.37662314,170.37,170.24,18.64964886]
[1747594027570,14.67440101,170.37,170.26,7.48477013]
[1747594027771,163.37662314,170.36,170.27,6.0248]
[1747594027998,24.29162841,170.33,170.27,6.0248]
[1747594028180,161.66825155,170.32,170.24,42.4]
[1747594028573,137.37662314,170.32,170.24,42.4]
[1747594029090,143.24799426,170.32,170.24,48.27399439]
[1747594029480,137.37662314,170.32,170.24,48.27399439]
[1747594029686,167.53962056,170.32,170.24,42.4]
[1747594029989,24.29162841,170.28,170.22,6.0248]
[1747594030194,24.29162841,170.25,170.16,6.1365]
[1747594030377,24.29162841,170.23,170.16,12.01324846]
[1747594030802,24.29162841,170.24,170.16,12.01324846]
[1747594031098,30.16595395,170.24,170.16,12.01324846]
[1747594031302,24.29162841,170.23,170.16,6.1365]
[1747594031506,24.29162841,170.21,170.14,42.4]
[1747594031870,24.29162841,170.2,170.14,21.24]
[1747594032274,24.29162841,170.22,170.14,27.11749564]
[1747594032807,137.37662314,170.23,170.14,27.11749564]
[1747594033404,143.25105047,170.23,170.14,27.11749564]
[1747594033586,24.29162841,170.22,170.14,21.24]
[1747594033792,24.29162841,170.21,170.14,21.24]
[1747594033994,24.29162841,170.19,170.14,21.24]
[1747594034303,157.93706351,170.23,170.12,6.1365]
[1747594034304,24.29162841,170.18,170.12,6.1365]
[1747594034475,24.29162841,170.19,170.12,6.1365]
[1747594035182,157.93706351,170.23,170.12,6.1365]
[1747594035183,24.29162841,170.18,170.12,6.1365]
[1747594035490,30.16792294,170.18,170.12,6.1365]
[1747594036001,24.29162841,170.19,170.12,12.01456568]
[1747594036200,24.29162841,170.22,170.13,18.64964886]
[1747594036502,137.37662314,170.23,170.13,19.82500765]
[1747594036702,24.29162841,170.22,170.12,38.01456568]
[1747594036884,24.29162841,170.19,170.12,6.1365]
[1747594037085,24.29162841,170.2,170.12,12.01457309]
[1747594037292,161.66825155,170.21,170.12,12.01457309]
[1747594037605,24.29162841,170.2,170.12,12.01457309]
[1747594037807,5.87578588,170.19,170.12,12.01457309]
[1747594038325,137.37662314,170.21,170.12,12.01457309]
[1747594038479,137.37662314,170.21,170.13,26.0]
[1747594039103,167.54349445,170.21,170.12,12.01457309]
[1747594039494,143.25186604,170.21,170.12,12.01457309]
[1747594039681,24.29162841,170.18,170.12,6.1365]
[1747594040304,161.66825155,170.17,170.1,1.6218]
[1747594040488,137.37662314,170.16,170.1,7.50058512]
[1747594041588,137.37662314,170.16,170.1,40.84747089]
[1747594042434,137.37662314,170.16,170.1,7.50058512]
[1747594042709,143.25362275,170.16,170.1,7.50058512]
[1747594043082,137.37662314,170.16,170.1,7.50058512]
[1747594043984,137.37662314,170.16,170.1,22.19782203]
[1747594044313,167.54524051,170.16,170.1,1.6218]
[1747594044491,167.54524051,170.16,170.09,21.16]
[1747594044492,137.37662314,170.15,170.09,21.16]
[1747594044691,161.66825155,170.15,170.09,27.03917471]
[1747594044912,137.37662314,170.15,170.09,27.03917471]
[1747594046189,143.25384438,170.15,170.09,27.03917471]
[1747594046584,137.37662314,170.15,170.09,27.03917471]
[1747594047112,143.25386363,170.15,170.09,27.03917471]
[1747594047807,24.29162841,170.13,170.05,1.6088]
[1747594048108,137.37662314,170.12,170.08,26.0]
[1747594048718,143.25491133,170.12,170.06,5.88014561]
[1747594048892,143.25491133,170.12,170.05,7.4893549]
[1747594049086,161.66825155,170.11,170.04,6.2169]
[1747594049621,24.29162841,170.09,170.02,5.88166098]
[1747594049910,24.29162841,170.08,170.01,27.04194603]
[1747594050206,24.29162841,170.09,170.02,26.0]
[1747594050705,24.29162841,170.09,170.01,27.04194603]
[1747594050916,24.29162841,170.09,170.04,26.0]
[1747594051086,5.8778581,170.13,170.04,26.0]
[1747594051285,5.8771672,170.15,170.04,26.0]
[1747594051515,4.9828,170.2,170.1,26.0]
[1747594051707,24.29162841,170.16,170.1,26.0]
[1747594052109,24.29162841,170.16,170.1,31.87885492]
[1747594052317,22.7703,170.21,170.1,31.87885492]
[1747594052621,24.29162841,170.2,170.1,31.87885492]
[1747594053832,30.16713824,170.2,170.1,31.87885492]
[1747594054021,24.29162841,170.19,170.1,31.87885492]
[1747594054335,24.29162841,170.18,170.1,31.87885492]
[1747594054541,24.29162841,170.19,170.1,31.87885492]
[1747594054716,24.29162841,170.21,170.13,26.0]
[1747594055043,30.16689917,170.21,170.13,26.0]
[1747594055226,24.29162841,170.2,170.1,47.75148475]
[1747594055431,24.29162841,170.2,170.14,26.0]
[1747594056231,24.29162841,170.16,170.09,1.6319]
[1747594056926,137.37662314,170.18,170.09,33.51113802]
[1747594057433,24.29162841,170.16,170.09,27.6319]
[1747594057630,24.29162841,170.1,170.03,6.5253]
[1747594057930,24.29162841,170.06,169.99,14.04060401]
[1747594058233,5.88050381,170.06,169.99,40.04060401]
[1747594058532,30.17213222,170.06,169.99,34.158]
[1747594060130,30.17213222,170.06,169.98,21.16]
[1747594060131,24.29162841,170.04,169.98,21.16]
[1747594061126,24.29162841,170.03,169.98,21.16]
[1747594062028,30.17328939,170.02,169.98,21.16]
[1747594062335,24.29162841,169.99,169.92,21.1]
[1747594062507,24.29162841,169.99,169.93,26.0]
[1747594062708,5.88166098,170.02,169.93,26.0]
[1747594062914,24.29162841,170.0,169.93,26.0]
[1747594063120,24.29162841,169.99,169.92,26.98505026]
[1747594063326,24.29162841,169.99,169.92,26.98504856]
[1747594063537,24.29162841,169.99,169.92,52.98504856]
[1747594063955,24.29162841,169.99,169.92,26.98504856]
[1747594064248,24.29162841,169.99,169.92,52.98504856]
[1747594065425,24.29162841,170.0,169.92,52.98504856]
[1747594066722,24.29162841,169.99,169.92,52.98504856]
[1747594066920,21.12,170.03,169.95,26.0]
[1747594067254,4.9828,170.05,169.95,26.0]
[1747594067255,24.29162841,170.05,169.95,26.0]
[1747594067722,24.29162841,170.04,169.96,26.0]
[1747594068454,24.29162841,170.04,169.97,5.88339118]
[1747594068940,24.29162841,170.03,169.96,31.8837289]
[1747594069245,20.57976127,170.07,169.95,26.0]
[1747594069246,24.29162841,170.01,169.95,26.0]
[1747594069956,24.29162841,170.01,169.94,5.88410157]
[1747594070733,30.17368038,170.01,169.94,5.88410157]
[1747594071445,24.29162841,170.0,169.93,31.88469258]
[1747594072161,137.37662314,170.04,169.93,31.88469258]
[1747594072320,161.66825155,170.04,169.93,33.06148466]
[1747594073145,161.66825155,170.04,169.94,18.64964886]
[1747594073361,137.37662314,170.04,169.94,18.64964886]
[1747594073544,24.29162841,170.02,169.93,46.59663279]
[1747594074146,143.25763736,170.04,169.93,46.59663279]
[1747594074323,30.17337446,170.02,169.93,46.59663279]
[1747594074934,24.29162841,170.02,169.93,46.59663279]
[1747594075352,137.37662314,170.04,169.93,46.59663279]
[1747594075528,24.29162841,170.03,169.93,47.77321159]
[1747594076054,24.29162841,170.02,169.93,31.88469258]
[1747594076247,30.17432282,170.0,169.93,5.88469258]
[1747594076554,24.29162841,169.99,169.93,5.88469258]
[1747594077235,30.17432282,170.0,169.93,5.88469258]
[1747594077436,24.29162841,170.01,169.93,5.88469258]
[1747594078142,167.54923536,170.04,169.95,26.0]
[1747594078448,161.66825155,170.04,169.95,26.0]
[1747594079648,24.29162841,170.03,169.96,5.88373734]
[1747594079951,143.25764821,170.04,169.92,39.74964886]
[1747594079952,24.29162841,170.01,169.94,31.88436757]
[1747594080155,24.29162841,170.0,169.94,31.88436757]
[1747594080345,167.54927662,170.04,169.94,31.88436757]
[1747594080651,24.29162841,170.03,169.94,31.88436757]
[1747594080852,24.29162841,170.01,169.94,31.88436757]
[1747594081056,24.29162841,170.0,169.92,21.1]
[1747594081246,24.29162841,169.99,169.92,21.1]
[1747594081447,24.29162841,169.95,169.87,27.3907]
[1747594081642,30.17604453,169.95,169.88,5.88650812]
[1747594082165,24.29162841,169.92,169.86,1.6027]
[1747594082346,5.88441612,169.95,169.87,26.0]
[1747594082735,137.37662314,169.99,169.89,26.0]
[1747594083038,161.66825155,169.98,169.89,26.0]
[1747594083431,137.37662314,169.98,169.89,26.0]
[1747594083632,24.29162841,169.97,169.89,26.0]
[1747594084038,24.29162841,169.96,169.89,26.0]
[1747594084463,24.29162841,169.94,169.87,5.88679446]
[1747594084637,24.29162841,169.92,169.86,5.88714485]
[1747594084834,24.29162841,169.92,169.84,241.04]
[1747594084835,24.29162841,169.91,169.84,5.88789448]